bitfinex-derivatives/quotes_BTCF0:USTF0_20250929
["timestamp","ask_amount","ask_price","bid_price","bid_amount"]
[1759186154710,0.75836273,114180.0,114170.0,1.19310361]
[1759186154912,0.6618973,114180.0,114170.0,1.19310361]
[1759186155210,0.38839529,114180.0,114170.0,1.19310361]
[1759186156810,0.47591919,114180.0,114170.0,1.19310361]
[1759186157410,0.48479402,114180.0,114170.0,1.19310361]
[1759186157606,0.55550285,114180.0,114170.0,1.19310361]
[1759186158206,0.45910412,114180.0,114170.0,1.19310361]
[1759186159210,0.45910412,114180.0,114170.0,0.39826361]
[1759186159412,0.54662802,114180.0,114170.0,0.39826361]
[1759186159614,0.54662802,114180.0,114170.0,1.19294361]
[1759186161817,0.55045157,114180.0,114170.0,1.19294361]
[1759186162613,0.45414412,114180.0,114170.0,1.19294361]
[1759186162820,0.07110883,114180.0,114170.0,1.46624562]
[1759186163117,0.07070883,114180.0,114170.0,0.39826361]
[1759186163413,0.72678291,114190.0,114180.0,0.1234339]
[1759186163610,0.74880595,114190.0,114180.0,0.39693591]
[1759186163809,0.74960595,114190.0,114180.0,0.39693591]
[1759186164223,0.74960595,114190.0,114180.0,1.19137591]
[1759186164915,0.74960595,114190.0,114180.0,1.10385201]
[1759186165323,0.74960595,114190.0,114180.0,1.10373201]
[1759186165627,0.74960595,114190.0,114180.0,0.30941201]
[1759186165827,0.74960595,114190.0,114180.0,1.10373201]
[1759186167225,0.8288523,114190.0,114180.0,1.10373201]
[1759186167925,0.8288523,114190.0,114180.0,0.83023]
[1759186168222,0.8288523,114190.0,114180.0,1.10373201]
[1759186168823,0.09828973,114190.0,114180.0,1.46475862]
[1759186169023,0.07050669,114190.0,114180.0,2.09906063]
[1759186169215,0.0924695,114200.0,114190.0,0.1234236]
[1759186169418,0.00496,114200.0,114190.0,0.39692561]
[1759186169618,0.00576,114200.0,114190.0,0.39692561]
[1759186169823,0.01363835,114200.0,114190.0,0.39692561]
[1759186170025,0.00536,114200.0,114190.0,0.39692561]
[1759186170524,0.07482451,114200.0,114190.0,0.39692561]
[1759186170722,0.00536,114200.0,114190.0,0.39692561]
[1759186173428,0.0004,114200.0,114190.0,0.39692561]
[1759186174631,0.73532176,114210.0,114200.0,0.1234193]
[1759186174831,0.82885777,114210.0,114200.0,1.19076131]
[1759186175035,0.0875093,114200.0,114190.0,0.01327]
[1759186175231,1.022186,114200.0,114190.0,0.01327]
[1759186175620,1.022186,114200.0,114190.0,0.03591]
[1759186176532,0.47518198,114200.0,114190.0,0.03591]
[1759186176733,1.022186,114200.0,114190.0,0.03591]
[1759186182339,0.47518198,114200.0,114190.0,0.03591]
[1759186182538,1.022186,114200.0,114190.0,0.03591]
[1759186186541,1.022186,114200.0,114190.0,0.1234269]
[1759186189643,1.022186,114200.0,114190.0,0.03591]
[1759186189843,0.47518198,114200.0,114190.0,0.03591]
[1759186190140,1.022186,114200.0,114190.0,0.03591]
[1759186190344,0.74853977,114200.0,114190.0,0.03591]
[1759186192638,0.74853977,114200.0,114190.0,0.1234269]
[1759186200153,0.47518198,114200.0,114190.0,0.1234269]
[1759186200342,0.74853977,114200.0,114190.0,0.1234269]
[1759186202656,0.47518198,114200.0,114190.0,0.1234269]
[1759186204653,0.74853977,114200.0,114190.0,0.1234269]
[1759186205351,0.47518198,114200.0,114190.0,0.1234269]
[1759186205556,0.11438198,114200.0,114190.0,0.1234269]
[1759186207356,0.11438198,114200.0,114190.0,0.39678469]
[1759186207749,0.11478198,114200.0,114190.0,0.39678469]
[1759186208046,0.11478198,114200.0,114190.0,0.1234269]
[1759186208251,0.11478198,114200.0,114190.0,0.39678469]
[1759186210562,0.11438198,114200.0,114190.0,0.39678469]
[1759186210749,0.11478198,114200.0,114190.0,0.1234269]
[1759186211661,0.11478198,114200.0,114190.0,0.39678469]
[1759186216657,0.11478198,114200.0,114190.0,0.1234269]
[1759186216960,0.11478198,114200.0,114190.0,0.39678469]
[1759186218460,0.11478198,114200.0,114190.0,1.18970469]
[1759186219364,0.11478198,114200.0,114190.0,0.39678469]
[1759186219661,0.11478198,114200.0,114190.0,0.1234269]
[1759186219864,0.11478198,114200.0,114190.0,0.9199869]
[1759186220663,0.47558198,114200.0,114190.0,0.9199869]
[1759186224852,0.47558198,114200.0,114190.0,0.1234269]
[1759186225058,0.47558198,114200.0,114190.0,0.9199869]
[1759186225864,0.47558198,114200.0,114190.0,0.1234269]
[1759186226167,0.47558198,114200.0,114190.0,0.9199869]
[1759186226764,0.47558198,114200.0,114190.0,0.1234269]
[1759186226965,0.47558198,114200.0,114190.0,0.9199069]
[1759186228465,0.47558198,114200.0,114190.0,0.1234269]
[1759186228663,0.47558198,114200.0,114190.0,0.9199069]
[1759186228964,0.47558198,114200.0,114190.0,0.1234269]
[1759186229162,0.47558198,114200.0,114190.0,0.9197469]
[1759186232866,0.47558198,114200.0,114190.0,0.9195869]
[1759186235469,0.47558198,114200.0,114190.0,0.1234269]
[1759186235970,0.47558198,114200.0,114190.0,0.9193069]
[1759186237868,0.47558198,114200.0,114190.0,0.9192269]
[1759186239575,0.47558198,114200.0,114190.0,0.1234269]
[1759186239765,0.47558198,114200.0,114190.0,0.9192269]
[1759186242674,0.47558198,114200.0,114190.0,0.9191469]
[1759186243170,0.47558198,114200.0,114190.0,0.9189869]
[1759186243372,0.47558198,114200.0,114190.0,0.1234269]
[1759186243573,0.47558198,114200.0,114190.0,0.9189469]
[1759186243871,0.74893977,114200.0,114190.0,0.9189469]
[1759186244776,0.47558198,114200.0,114190.0,0.9189469]
[1759186245175,0.47558198,114200.0,114190.0,0.1234269]
[1759186245477,0.47558198,114200.0,114190.0,0.9204269]
[1759186248275,0.47558198,114200.0,114190.0,1.19378469]
[1759186249279,0.47558198,114200.0,114190.0,0.9204269]
[1759186250179,0.47558198,114200.0,114190.0,1.19378469]
[1759186251378,0.47558198,114200.0,114190.0,0.9204269]
[1759186252280,0.74889504,114200.0,114190.0,1.19373996]
[1759186259488,0.74889504,114200.0,114190.0,0.39673996]
[1759186259689,0.74889504,114200.0,114190.0,1.19333996]
[1759186259887,0.74889504,114200.0,114190.0,1.19325996]
[1759186261493,0.74889504,114200.0,114190.0,0.39673996]
[1759186261693,0.74889504,114200.0,114190.0,1.19325996]
[1759186262795,0.74889504,114200.0,114190.0,0.9199469]
[1759186262997,0.74889504,114200.0,114190.0,1.19325996]
[1759186263396,0.74889504,114200.0,114190.0,0.9199469]
[1759186263596,0.74889504,114200.0,114190.0,1.19325996]
[1759186269996,0.47558198,114200.0,114190.0,1.19325996]
[1759186270200,0.74889504,114200.0,114190.0,1.19325996]
[1759186275206,0.74889504,114200.0,114190.0,1.19289996]
[1759186278912,0.47558198,114200.0,114190.0,0.1234269]
[1759186279114,0.74889504,114200.0,114190.0,0.9195069]
[1759186279303,0.74889504,114200.0,114190.0,1.19281996]
[1759186280113,0.74393504,114200.0,114190.0,0.39673996]
[1759186280314,0.74393504,114200.0,114190.0,1.19285996]
[1759186281213,0.74889504,114200.0,114190.0,1.19285996]
[1759186282714,0.74889504,114200.0,114190.0,0.39673996]
[1759186282916,0.74889504,114200.0,114190.0,1.19285996]
[1759186284818,0.47558198,114200.0,114190.0,1.19285996]
[1759186285210,0.74889504,114200.0,114190.0,1.19285996]
[1759186289119,0.74889504,114200.0,114190.0,0.39673996]
[1759186289326,0.74889504,114200.0,114190.0,1.19253996]
[1759186290021,0.74889504,114200.0,114190.0,0.39673996]
[1759186290219,0.74889504,114200.0,114190.0,1.19249996]
[1759186293024,0.74889504,114200.0,114190.0,0.9191869]
[1759186293221,0.74889504,114200.0,114190.0,1.19249996]
[1759186295027,0.47558198,114200.0,114190.0,1.19249996]
[1759186295223,0.74889504,114200.0,114190.0,1.19249996]
[1759186297729,0.47558198,114200.0,114190.0,1.19249996]
[1759186297930,0.74889504,114200.0,114190.0,1.19249996]
[1759186300733,0.74889504,114200.0,114190.0,0.9191869]
[1759186300934,0.74889504,114200.0,114190.0,1.19249996]
[1759186304236,0.74889504,114200.0,114190.0,1.19193996]
[1759186305442,0.74889504,114200.0,114190.0,1.19189996]
[1759186307245,0.47558198,114200.0,114190.0,1.19189996]
[1759186307445,0.74889504,114200.0,114190.0,1.19189996]
[1759186308035,0.47558198,114200.0,114190.0,1.19189996]
[1759186308248,0.74889504,114200.0,114190.0,1.19189996]
[1759186311347,0.47558198,114200.0,114190.0,1.19189996]
[1759186311548,0.74889504,114200.0,114190.0,1.19189996]
[1759186312546,0.47558198,114200.0,114190.0,1.19189996]
[1759186312749,0.74889504,114200.0,114190.0,1.19189996]
[1759186314237,0.47558198,114200.0,114190.0,1.19189065]
[1759186321255,0.38807268,114200.0,114190.0,1.19189065]
[1759186321553,0.38271268,114200.0,114190.0,1.19189065]
[1759186321757,0.38311268,114200.0,114190.0,1.19189065]
[1759186322349,0.38311268,114200.0,114190.0,1.20051166]
[1759186322548,0.02231268,114200.0,114190.0,1.20051166]
[1759186322749,0.0004,114200.0,114190.0,1.60051166]
[1759186322945,0.0004,114200.0,114190.0,1.66356977]
[1759186323150,0.53264718,114210.0,114200.0,0.1230492]
[1759186323358,0.55499144,114210.0,114200.0,0.39635295]
[1759186327364,0.55499144,114210.0,114200.0,1.19131295]
[1759186336467,0.55499144,114210.0,114200.0,0.39635295]
[1759186336666,0.55499144,114210.0,114200.0,1.19099295]
[1759186338162,0.55499144,114210.0,114190.0,0.01327]
[1759186338163,1.04249584,114210.0,114190.0,0.01327]
[1759186338363,0.0924769,114190.0,114180.0,0.07632811]
[1759186338570,0.0924846,114180.0,114170.0,0.0357]
[1759186338763,0.74794494,114180.0,114170.0,0.1232322]
[1759186338965,0.38711659,114180.0,114170.0,0.1232322]
[1759186339268,0.38711659,114180.0,114170.0,0.0357]
[1759186339269,0.47464119,114180.0,114170.0,0.0357]
[1759186339568,0.4532846,114180.0,114170.0,0.0357]
[1759186339756,0.72658835,114180.0,114170.0,0.0357]
[1759186340159,0.72658835,114180.0,114170.0,0.1232322]
[1759186340768,0.4532846,114180.0,114170.0,0.1232322]
[1759186341569,0.72658835,114180.0,114170.0,0.1232322]
[1759186341772,0.4532846,114180.0,114170.0,0.1232322]
[1759186342868,0.4622324,114180.0,114170.0,0.0357]
[1759186345971,0.73553615,114180.0,114170.0,0.0357]
[1759186347771,0.4532846,114180.0,114170.0,0.1232322]
[1759186350570,1.25805559,114190.0,114180.0,0.1229646]
[1759186350769,1.53135934,114190.0,114180.0,0.1229646]
[1759186351074,0.73527934,114190.0,114180.0,0.1229646]
[1759186351472,1.54504457,114190.0,114180.0,0.1229646]
[1759186351672,1.52342575,114190.0,114180.0,0.1229646]
[1759186351970,0.72698575,114190.0,114180.0,0.1229646]
[1759186352372,0.74860447,114190.0,114180.0,0.1229646]
[1759186353264,0.47530072,114190.0,114180.0,0.1229646]
[1759186355078,0.453682,114190.0,114180.0,0.1229646]
[1759186357279,0.47530542,114190.0,114180.0,0.1229646]
[1759186357580,0.453682,114190.0,114180.0,0.1229646]
[1759186367390,0.47534376,114190.0,114180.0,0.1229646]
[1759186368389,0.87534376,114190.0,114170.0,0.0139]
[1759186368590,1.3616275,114180.0,114160.0,0.1005467]
[1759186368790,0.27826375,114170.0,114160.0,0.1228367]
[1759186369092,0.11406066,114170.0,114160.0,0.0353]
[1759186369294,0.38736441,114170.0,114160.0,0.0353]
[1759186369489,0.74816441,114170.0,114160.0,0.0353]
[1759186371393,0.81747214,114170.0,114160.0,0.0353]
[1759186371894,0.54416839,114170.0,114160.0,0.0353]
[1759186372095,0.81747214,114170.0,114160.0,0.0353]
[1759186374002,0.54416839,114170.0,114160.0,0.0353]
[1759186374296,0.81747214,114170.0,114160.0,0.0353]
[1759186376300,0.81766597,114170.0,114160.0,0.0353]
[1759186380901,0.54416839,114170.0,114160.0,0.0353]
[1759186381102,0.81766597,114170.0,114160.0,0.0353]
[1759186382800,0.81766597,114170.0,114160.0,0.1228379]
[1759186388003,0.54416839,114170.0,114160.0,0.39633548]
[1759186388211,0.79609751,114170.0,114160.0,0.39633548]
[1759186390016,0.79609751,114170.0,114160.0,0.1228379]
[1759186390310,0.79609751,114170.0,114160.0,0.39633548]
[1759186390807,0.52259993,114170.0,114160.0,0.39633548]
[1759186391015,0.79609751,114170.0,114160.0,0.39633548]
[1759186393514,0.8197214,114170.0,114160.0,0.39633548]
[1759186400019,0.8197214,114170.0,114160.0,0.1228379]
[1759186400324,0.8197214,114170.0,114160.0,0.39633548]
[1759186403821,0.54622382,114170.0,114160.0,0.39633548]
[1759186404119,0.8197214,114170.0,114160.0,0.39633548]
[1759186412421,0.45869162,114170.0,114160.0,0.39633548]
[1759186412622,0.09789162,114170.0,114160.0,0.66983306]
[1759186413223,0.09829162,114170.0,114160.0,0.66983306]
[1759186413422,0.3717892,114170.0,114160.0,0.66983306]
[1759186414726,0.4593195,114170.0,114160.0,0.66983306]
[1759186417127,0.4593207,114170.0,114160.0,1.47419306]
[1759186417434,0.4593207,114170.0,114160.0,1.20069548]
[1759186418426,0.09333162,114170.0,114160.0,1.47419306]
[1759186418633,0.06970773,114170.0,114160.0,1.53724611]
[1759186419631,0.15723813,114170.0,114160.0,1.53724611]
[1759186419830,0.16219813,114170.0,114160.0,1.53696611]
[1759186420133,0.16219813,114170.0,114160.0,1.47391306]
[1759186420327,0.16219813,114170.0,114160.0,0.66983306]
[1759186420526,0.16219813,114170.0,114160.0,1.47379306]
[1759186421432,0.16219813,114170.0,114160.0,1.53684611]
[1759186424536,0.16219813,114170.0,114160.0,0.73288611]
[1759186424736,0.16219813,114170.0,114160.0,1.53656611]
[1759186426237,0.16219813,114170.0,114160.0,0.73288611]
[1759186426437,0.16219813,114170.0,114160.0,1.53628611]
[1759186430739,0.16219813,114170.0,114160.0,1.47323306]
[1759186435246,0.16219813,114170.0,114160.0,0.66983306]
[1759186435447,0.16219813,114170.0,114160.0,1.47215306]
[1759186436251,0.16219813,114170.0,114160.0,1.19857796]
[1759186436959,0.15723813,114170.0,114160.0,1.19857796]
[1759186437257,0.06970773,114170.0,114160.0,1.19857796]
[1759186437751,0.15723803,114170.0,114160.0,1.19857796]
[1759186441956,0.06930773,114170.0,114160.0,1.95937796]
[1759186442149,0.0875279,114180.0,114170.0,0.1234703]
[1759186442453,0.11399609,114180.0,114170.0,0.39689036]
[1759186442653,0.02686819,114180.0,114170.0,0.39689036]
[1759186442950,0.02646819,114180.0,114170.0,0.39689036]
[1759186443155,0.02686819,114180.0,114170.0,0.39689036]
[1759186446957,0.02190819,114180.0,114170.0,0.39689036]
[1759186447150,0.0004,114180.0,114170.0,0.75769036]
[1759186447353,0.0004,114180.0,114170.0,1.22074341]
[1759186447554,0.74002159,114200.0,114190.0,0.1234553]
[1759186447748,0.48890385,114200.0,114190.0,0.39687536]
[1759186447950,0.39275612,114200.0,114190.0,0.39687536]
[1759186448151,0.39195612,114200.0,114190.0,0.39687536]
[1759186448347,0.47986372,114200.0,114190.0,0.39687536]
[1759186448552,0.47986372,114200.0,114190.0,1.19795536]
[1759186449053,0.47986372,114200.0,114190.0,0.39687536]
[1759186449255,0.47986372,114200.0,114190.0,1.19783536]
[1759186449456,0.47986372,114200.0,114190.0,0.39687536]
[1759186449754,0.47986372,114200.0,114190.0,1.19783536]
[1759186450058,0.47986372,114200.0,114190.0,0.39687536]
[1759186450356,0.47986372,114200.0,114190.0,1.19779536]
[1759186451948,0.4583614,114200.0,114190.0,1.19779536]
[1759186455455,0.4579614,114200.0,114190.0,1.19779536]
[1759186455660,0.4583614,114200.0,114190.0,1.19779536]
[1759186457157,0.4583614,114200.0,114190.0,0.39687536]
[1759186457559,0.4583614,114200.0,114190.0,1.19723536]
[1759186458459,0.4583614,114200.0,114190.0,0.39687536]
[1759186458658,0.4583614,114200.0,114190.0,1.19715536]
[1759186459457,0.4583614,114200.0,114190.0,0.39687536]
[1759186459664,0.4583614,114200.0,114190.0,1.19711536]
[1759186459960,0.4536676,114200.0,114190.0,1.19711536]
[1759186470270,0.4487076,114200.0,114190.0,1.19711536]
[1759186470472,0.0875076,114200.0,114190.0,1.19711536]
[1759186470766,0.53352498,114210.0,114200.0,0.1234277]
[1759186470972,0.55494771,114210.0,114200.0,0.39684776]
[1759186471274,0.55414771,114210.0,114200.0,0.39684776]
[1759186471870,0.55454771,114210.0,114200.0,1.19612776]
[1759186472072,0.55414771,114210.0,114200.0,1.19612776]
[1759186472271,0.55454771,114210.0,114200.0,1.19612776]
[1759186476272,0.54591136,114210.0,114200.0,1.19612776]
[1759186477968,0.18511136,114210.0,114200.0,1.19612776]
[1759186478276,0.18014636,114210.0,114200.0,1.19612776]
[1759186478475,0.17974636,114210.0,114200.0,1.19612776]
[1759186478678,0.15872363,114210.0,114200.0,1.19612776]
[1759186479275,0.15872363,114210.0,114200.0,1.19584776]
[1759186480073,0.15872363,114210.0,114200.0,0.39684776]
[1759186480282,0.15872363,114210.0,114200.0,1.19576776]
[1759186481680,0.18015023,114210.0,114200.0,1.19576776]
[1759186483176,0.09264993,114210.0,114200.0,1.19576776]
[1759186483374,0.18015123,114210.0,114200.0,1.19576776]
[1759186483684,0.18015123,114210.0,114200.0,1.20469641]
[1759186484179,0.15872463,114210.0,114200.0,1.20469641]
[1759186484476,0.15872463,114210.0,114200.0,1.19576776]
[1759186484674,0.07122333,114210.0,114200.0,1.55656776]
[1759186484872,0.15872463,114210.0,114200.0,1.55656776]
[1759186485082,0.15832463,114210.0,114200.0,1.55656776]
[1759186485387,0.15872463,114210.0,114200.0,1.55656776]
[1759186498292,0.15872463,114210.0,114200.0,1.8295514]
[1759186499095,0.15872463,114210.0,114200.0,1.89260445]
[1759186499486,0.07122333,114210.0,114200.0,1.89260445]
[1759186501088,0.07122333,114210.0,114200.0,1.8295514]
[1759186502292,0.07122333,114210.0,114200.0,1.89260445]
[1759186502684,0.07122333,114210.0,114200.0,1.8295514]
[1759186503290,0.07122333,114210.0,114200.0,1.89260445]
[1759186503499,0.07082333,114210.0,114200.0,1.89260445]
[1759186503797,0.0004,114210.0,114200.0,1.89260445]
[1759186505095,0.0693404,114210.0,114200.0,1.89260445]
[1759186505291,0.0004,114210.0,114200.0,1.89260445]
[1759186508299,0.0004,114210.0,114200.0,2.50275325]
[1759186508604,0.4538912,114230.0,114220.0,0.1218337]
[1759186508802,0.81795362,114230.0,114220.0,1.19195555]
[1759186509302,0.81795362,114230.0,114220.0,0.39503555]
[1759186509709,0.54475177,114230.0,114220.0,1.19247555]
[1759186510111,0.54475177,114230.0,114220.0,1.4656774]
[1759186510409,0.54475177,114230.0,114220.0,0.6682374]
[1759186510606,0.54475177,114230.0,114220.0,1.4656374]
[1759186512413,0.54475177,114230.0,114220.0,1.4654774]
[1759186514712,0.45166057,114230.0,114220.0,1.4654774]
[1759186514911,0.09086057,114230.0,114220.0,1.4654774]
[1759186515107,0.0056,114240.0,114230.0,0.03399]
[1759186515309,0.38304158,114240.0,114230.0,0.6678742]
[1759186515509,0.4482741,114250.0,114230.0,0.6678742]
[1759186515714,0.47610971,114250.0,114240.0,0.667871]
[1759186516014,0.47610971,114250.0,114240.0,0.39466915]
[1759186516015,0.74931156,114250.0,114240.0,0.39466915]
[1759186516217,0.47610971,114250.0,114240.0,1.465711]
[1759186516621,0.47530971,114250.0,114240.0,1.465711]
[1759186516914,0.47570971,114250.0,114240.0,1.465711]
[1759186517117,0.47530971,114250.0,114240.0,0.667871]
[1759186517315,0.02743561,114250.0,114240.0,1.465591]
[1759186517516,0.006,114250.0,114240.0,1.465591]
[1759186517717,0.07481131,114250.0,114240.0,1.465591]
[1759186517919,0.18396641,114250.0,114240.0,1.465591]
[1759186518315,0.09649681,114250.0,114240.0,1.465591]
[1759186518612,0.06881131,114250.0,114240.0,1.465591]
[1759186518815,0.0878697,114250.0,114240.0,0.667871]
[1759186519024,0.0878697,114250.0,114240.0,1.465471]
[1759186519519,0.0878697,114250.0,114240.0,1.465431]
[1759186522019,0.15610723,114250.0,114240.0,1.465431]
[1759186522413,0.15610723,114250.0,114240.0,0.667871]
[1759186522614,0.15610723,114250.0,114240.0,1.465311]
[1759186523327,0.15610723,114250.0,114240.0,1.465351]
[1759186527028,0.15610723,114250.0,114240.0,0.667871]
[1759186527223,0.15610723,114250.0,114240.0,1.465271]
[1759186527726,0.15610723,114250.0,114240.0,0.667871]
[1759186527928,0.15610723,114250.0,114240.0,1.465151]
[1759186529025,0.15610723,114250.0,114240.0,1.465111]
[1759186529421,0.06863753,114250.0,114240.0,1.465111]
[1759186530830,0.06863753,114250.0,114240.0,1.825911]
[1759186532317,0.06863753,114250.0,114240.0,1.2795073]
[1759186532518,0.0004,114250.0,114240.0,1.825911]
[1759186533124,0.4482638,114260.0,114250.0,0.1236496]
[1759186533423,0.3616,114260.0,114250.0,0.39685145]
[1759186534033,0.4490619,114260.0,114250.0,0.39685145]
[1759186534230,0.0008,114260.0,114250.0,1.0308533]
[1759186534534,0.51873811,114270.0,114260.0,0.1236419]
[1759186534833,0.52513811,114270.0,114260.0,1.19408375]
[1759186535329,0.52513811,114270.0,114260.0,1.4672856]
[1759186536632,0.52513811,114270.0,114260.0,0.6700456]
[1759186536928,0.52513811,114270.0,114260.0,1.4672856]
[1759186538038,0.52513811,114270.0,114260.0,0.6700456]
[1759186538239,0.52513811,114270.0,114260.0,1.4672456]
[1759186541026,0.52513811,114270.0,114260.0,1.4671656]
[1759186544035,0.52513811,114270.0,114260.0,1.4671256]
[1759186546337,0.54671482,114270.0,114260.0,1.4671256]
[1759186547235,0.09285502,114270.0,114260.0,1.4671256]
[1759186547443,0.07127831,114270.0,114260.0,1.4671256]
[1759186549837,0.07127831,114270.0,114260.0,0.9207219]
[1759186550036,0.07127831,114270.0,114260.0,1.4671256]
[1759186550536,0.09285695,114270.0,114260.0,1.4671256]
[1759186552133,0.09845695,114270.0,114260.0,0.6700456]
[1759186552333,0.09845695,114270.0,114260.0,1.4667256]
[1759186557140,0.09845695,114270.0,114260.0,0.6700456]
[1759186557443,0.0984293,114270.0,114260.0,0.9201619]
[1759186557633,0.0984293,114270.0,114260.0,1.4665656]
[1759186558349,0.0984293,114270.0,114260.0,1.19311817]
[1759186559444,0.0928293,114270.0,114260.0,0.9201619]
[1759186559642,0.0928293,114270.0,114260.0,1.19311817]
[1759186561847,0.0928293,114270.0,114260.0,1.2017739]
[1759186563248,0.0928293,114270.0,114260.0,0.92881763]
[1759186563448,0.0984293,114270.0,114260.0,1.2017739]
[1759186563638,0.0928293,114270.0,114260.0,1.2017739]
[1759186565951,0.1802844,114270.0,114260.0,1.2017739]
[1759186566851,0.1802844,114270.0,114260.0,1.19311817]
[1759186567051,0.1802844,114270.0,114260.0,0.9201619]
[1759186567250,0.1802844,114270.0,114260.0,1.19311817]
[1759186567552,0.1802844,114270.0,114260.0,0.9201619]
[1759186567753,0.1802844,114270.0,114260.0,1.19311817]
[1759186570250,0.0928293,114270.0,114260.0,1.19311817]
[1759186570448,0.07127831,114270.0,114260.0,1.19311817]
[1759186571046,0.15873331,114270.0,114260.0,1.19775817]
[1759186571445,0.15873331,114270.0,114260.0,1.20673045]
[1759186572554,0.15873331,114270.0,114260.0,0.46856305]
[1759186573163,0.15873331,114270.0,114260.0,1.26956305]
[1759186573655,0.15873331,114270.0,114260.0,1.20657045]
[1759186574054,0.18021875,114270.0,114260.0,0.39659817]
[1759186574254,0.18581875,114270.0,114260.0,1.19755817]
[1759186575255,0.18581875,114270.0,114260.0,0.9246019]
[1759186575451,0.18581875,114270.0,114260.0,1.19755817]
[1759186575858,0.18581875,114270.0,114260.0,0.39659817]
[1759186576058,0.18581875,114270.0,114260.0,1.19747817]
[1759186578059,0.18581875,114270.0,114260.0,0.1236419]
[1759186578256,0.18581875,114270.0,114260.0,1.19747817]
[1759186578459,0.18021875,114270.0,114260.0,1.19747817]
[1759186580660,0.18581875,114270.0,114260.0,0.39659817]
[1759186580961,0.18581875,114270.0,114260.0,1.19699817]
[1759186582361,0.18581875,114270.0,114260.0,0.39659817]
[1759186582663,0.18581875,114270.0,114260.0,1.19699817]
[1759186583869,0.18581875,114270.0,114260.0,0.39659817]
[1759186584063,0.18581875,114270.0,114260.0,1.19675817]
[1759186584763,0.16433331,114270.0,114260.0,1.25975077]
[1759186585458,0.16433331,114270.0,114260.0,0.45959077]
[1759186585663,0.16433331,114270.0,114260.0,1.25975077]
[1759186586669,0.16433331,114270.0,114260.0,0.1866345]
[1759186586865,0.16433331,114270.0,114260.0,1.25963077]
[1759186587067,0.16433331,114270.0,114260.0,1.25951077]
[1759186589285,0.16433331,114270.0,114260.0,0.1866345]
[1759186589578,0.16433331,114270.0,114260.0,1.25939077]
[1759186595281,0.16433331,114270.0,114260.0,0.45959077]
[1759186595483,0.16433331,114270.0,114260.0,1.25923077]
[1759186595672,0.16433331,114270.0,114260.0,1.19623817]
[1759186596782,0.16433331,114270.0,114260.0,1.19619817]
[1759186596978,0.16433331,114270.0,114260.0,0.39659817]
[1759186597181,0.52513331,114270.0,114260.0,0.03618]
[1759186597372,0.52513331,114270.0,114260.0,0.9231628]
[1759186597373,0.54654974,114270.0,114260.0,0.9231628]
[1759186597683,1.21950601,114270.0,114260.0,0.03618]
[1759186597885,1.21950601,114270.0,114260.0,0.55846]
[1759186598673,1.21950601,114270.0,114260.0,0.6459228]
[1759186598873,1.21950601,114270.0,114260.0,0.1236428]
[1759186599474,0.81950601,114270.0,114260.0,0.1236428]
[1759186602887,0.81950601,114270.0,114260.0,0.03618]
[1759186606385,0.54654974,114270.0,114260.0,0.03618]
[1759186606685,0.81950601,114270.0,114260.0,0.1236428]
[1759186607690,0.81950601,114270.0,114260.0,0.03618]
[1759186607895,0.54654974,114270.0,114260.0,0.03618]
[1759186608084,0.81950601,114270.0,114260.0,0.03618]
[1759186612389,1.61882601,114270.0,114260.0,0.03618]
[1759186613896,1.61882601,114270.0,114260.0,0.1236439]
[1759186615600,1.61882601,114270.0,114260.0,0.03618]
[1759186617101,1.61882601,114270.0,114260.0,0.1236439]
[1759186617602,1.61882601,114270.0,114260.0,0.03618]
[1759186618103,1.61882601,114270.0,114260.0,0.1236439]
[1759186620200,1.34586974,114270.0,114260.0,0.1236439]
[1759186620406,1.61890404,114270.0,114260.0,0.1236439]
[1759186621109,1.61890404,114270.0,114260.0,0.03618]
[1759186621709,1.61890404,114270.0,114260.0,0.1236428]
[1759186621900,0.54654974,114270.0,114260.0,0.1236428]
[1759186622199,1.61806404,114270.0,114260.0,0.1236428]
[1759186624203,1.97886404,114270.0,114260.0,0.1236428]
[1759186627210,1.97886404,114270.0,114260.0,0.03618]
[1759186627613,1.97886404,114270.0,114260.0,0.1236428]
[1759186629315,1.97886404,114270.0,114260.0,0.03618]
[1759186631612,1.97806404,114270.0,114260.0,0.03618]
[1759186632312,2.25109834,114270.0,114260.0,0.03618]
[1759186632511,1.97806404,114270.0,114260.0,0.03618]
[1759186633101,1.18038404,114270.0,114260.0,0.03618]
[1759186633311,1.97830404,114270.0,114260.0,0.03618]
[1759186638821,0.0930624,114260.0,114250.0,0.1229378]
[1759186639017,1.02134743,114260.0,114250.0,0.1229378]
[1759186642928,0.47527883,114260.0,114250.0,0.1229378]
[1759186643118,1.81870743,114260.0,114250.0,0.1229378]
[1759186645128,1.54567313,114260.0,114250.0,0.3959721]
[1759186645623,0.74831313,114260.0,114250.0,0.3959721]
[1759186645819,1.54547313,114260.0,114250.0,0.3959721]
[1759186646628,1.27243883,114260.0,114250.0,0.3959721]
[1759186646828,1.54547313,114260.0,114250.0,0.3959721]
[1759186647030,1.54547313,114260.0,114250.0,0.1229378]
[1759186647227,1.54547313,114260.0,114250.0,0.3959721]
[1759186651136,1.81850743,114260.0,114250.0,0.3959721]
[1759186656339,0.47527883,114260.0,114250.0,0.3959721]
[1759186656537,1.54547313,114260.0,114250.0,0.03547]
[1759186656741,1.81850743,114260.0,114250.0,0.03547]
[1759186660940,0.47527883,114260.0,114250.0,0.1229414]
[1759186661140,1.81850743,114260.0,114250.0,0.1229414]
[1759186666245,1.02134743,114260.0,114250.0,0.1229414]
[1759186666543,1.81850743,114260.0,114250.0,0.1229414]
[1759186668345,1.81846743,114260.0,114250.0,0.1229414]
[1759186675150,1.81853737,114260.0,114250.0,0.1229414]
[1759186676450,1.27246877,114260.0,114250.0,0.1229414]
[1759186676748,1.81853737,114260.0,114250.0,0.1229414]
[1759186677048,1.45773737,114260.0,114250.0,0.1229414]
[1759186677250,1.81853737,114260.0,114250.0,0.1229414]
[1759186678646,1.27246877,114260.0,114250.0,0.1229414]
[1759186678849,1.81853737,114260.0,114250.0,0.1229414]
[1759186680154,1.27246877,114260.0,114250.0,0.1229414]
[1759186680359,1.81849737,114260.0,114250.0,0.1229414]
[1759186680653,1.02141737,114260.0,114250.0,0.1229414]
[1759186680950,1.81849737,114260.0,114250.0,0.1229414]
[1759186681450,1.02141737,114260.0,114250.0,0.1229414]
[1759186681653,1.81849737,114260.0,114250.0,0.1229414]
[1759186682257,1.54549254,114260.0,114250.0,0.1229414]
[1759186684446,1.54549254,114260.0,114250.0,0.01286]
[1759186685150,1.54549254,114260.0,114250.0,0.1230814]
[1759186685755,1.27242877,114260.0,114250.0,0.1230814]
[1759186685952,1.54549254,114260.0,114250.0,0.1230814]
[1759186687554,1.54549254,114260.0,114250.0,0.03561]
[1759186687945,1.54549254,114260.0,114250.0,0.1230814]
[1759186691555,1.27242877,114260.0,114250.0,0.1230814]
[1759186691750,1.54549254,114260.0,114250.0,0.1230814]
[1759186692453,0.74841254,114260.0,114250.0,0.1230814]
[1759186692648,1.54541254,114260.0,114250.0,0.1230814]
[1759186692853,0.74841254,114260.0,114250.0,0.1230814]